fUSD/lending_fUSD_20250811
["ID","MTS","AMOUNT","RATE_DAILY","PERIOD"]
[378558825,1754913057867,-581.15254429,0.00016673,2]
[378558826,1754913057880,-500.0,0.00016673,2]
[378558827,1754913057893,-381.67973707,0.00016673,2]
[378558828,1754913057906,-431.61819803,0.00016673,2]
[378558829,1754913057918,-500.0,0.00016673,2]
[378558830,1754913057933,-504.98432434,0.00016673,2]
[378558831,1754913057946,-500.0,0.00016673,2]
[378558832,1754913057958,-500.0,0.00016673,2]
[378558833,1754913057971,-500.0,0.00016673,2]
[378558834,1754913057984,-514.93267603,0.00016673,2]
[378558835,1754913057997,-500.0,0.00016673,2]
[378558836,1754913058010,-298.25313817,0.00016673,2]
[378558837,1754913058023,-500.0,0.00016673,2]
[378558838,1754913058037,-2267.41341875,0.00016707,2]
[378558839,1754913058049,-500.0,0.00016718,2]
[378558840,1754913058062,-995.24,0.00016718,2]
[378558841,1754913058074,-500.0,0.00016718,2]
[378558842,1754913058088,-500.0,0.00016718,2]
[378558843,1754913058101,-667.36,0.00016718,2]
[378558844,1754913058114,-500.0,0.00016718,2]
[378558845,1754913058127,-671.9,0.00016718,2]
[378558846,1754913058140,-3179.72,0.00016718,2]
[378558847,1754913058152,-548.97842,0.0001673,2]
[378558848,1754913058164,-548.97843,0.0001673,2]
[378558849,1754913058176,-548.97842,0.0001673,2]
[378558850,1754913058189,-548.97843,0.0001673,2]
[378558851,1754913058201,-300.0,0.0001673,2]
[378558852,1754913058213,-736.14265235,0.0001674,2]
[378558853,1754913058225,-2267.41341875,0.00016769,2]
[378558854,1754913058240,-1807.89324862,0.000168,2]
[378558855,1754913058252,-150.0,0.00016811,2]
[378558856,1754913058263,-217.39,0.0001682,2]
[378558857,1754913058275,-150.0,0.00016823,2]
[378558858,1754913058287,-2267.41341875,0.0001683,2]
[378558859,1754913058299,-150.0,0.00016837,2]
[378558860,1754913058311,-5888.0,0.00016841,2]
[378558861,1754913058322,-500.0,0.00016849,2]
[378558862,1754913058335,-1000.0,0.00016849,5]
[378558863,1754913058348,-150.0,0.00016861,2]
[378558864,1754913058360,-500.15179162,0.00016873,2]
[378558865,1754913058372,-383.50387662,0.00016873,2]
[378558866,1754913058384,-500.0,0.00016873,2]
[378558867,1754913058395,-500.0,0.00016873,2]
[378558868,1754913058407,-500.0,0.00016873,2]
[378558869,1754913058419,-500.0,0.00016873,2]
[378558870,1754913058430,-159.82307129,0.00016873,2]
[378558871,1754913058443,-159.82307129,0.00016873,2]
[378558872,1754913058455,-159.82303564,0.00016873,2]
[378558873,1754913058466,-500.0,0.00016873,2]
[378558874,1754913058478,-159.82303564,0.00016873,2]
[378558875,1754913058490,-501.20244797,0.00016873,2]
[378558876,1754913058502,-159.82307129,0.00016873,2]
[378558877,1754913058514,-500.0,0.00016873,2]
[378558878,1754913058526,-500.0,0.00016873,2]
[378558879,1754913058538,-500.0,0.00016873,2]
[378558880,1754913058551,-500.0,0.00016873,2]
[378558881,1754913058563,-500.0,0.00016873,2]
[378558882,1754913058575,-500.0,0.00016873,2]
[378558883,1754913058589,-500.0,0.00016873,2]
[378558884,1754913058602,-159.82307129,0.00016873,2]
[378558885,1754913058614,-159.82775084,0.00016873,2]
[378558886,1754913058626,-289.593652,0.00016873,2]
[378558887,1754913058638,-500.0,0.00016873,2]
[378558888,1754913058650,-500.0,0.00016873,2]
[378558889,1754913058662,-500.0,0.00016873,2]
[378558890,1754913058674,-500.0,0.00016873,2]
[378558891,1754913058686,-150.0,0.00016874,2]
[378558892,1754913058697,-375.51,0.00016891,2]
[378558893,1754913058709,-2267.41341875,0.00016892,2]
[378558894,1754913058721,-666.15509979,0.00016892,2]
[378558895,1754913058734,-400.0,0.00016896,2]
[378558896,1754913058744,-400.0,0.00016896,2]
[378558897,1754913058754,-400.0,0.00016896,2]
[378558898,1754913058764,-400.0,0.00016896,2]
[378558899,1754913058773,-914.13,0.00016896,2]
[378558900,1754913058783,-400.0,0.00016896,2]
[378558901,1754913058792,-400.0,0.00016896,2]
[378558902,1754913058802,-1959.51,0.00016896,2]
[378558903,1754913058811,-563.57,0.00016896,2]
[378558904,1754913058820,-1025.43,0.00016896,2]
[378558905,1754913058830,-400.0,0.00016897,2]
[378558906,1754913058838,-486.72,0.00016897,2]
[378558907,1754913058847,-400.0,0.00016897,2]
[378558908,1754913058857,-400.0,0.00016897,2]
[378558909,1754913058866,-400.0,0.00016897,2]
[378558910,1754913058876,-400.0,0.00016897,2]
[378558911,1754913058885,-400.0,0.00016897,2]
[378558913,1754913058894,-400.0,0.00016897,2]
[378558915,1754913058904,-400.0,0.00016897,2]
[378558917,1754913058914,-400.0,0.00016897,2]
[378558919,1754913058923,-400.0,0.00016897,2]
[378558920,1754913058932,-400.0,0.00016897,2]
[378558922,1754913058941,-400.0,0.00016897,2]
[378558924,1754913058950,-400.0,0.00016897,2]
[378558926,1754913058959,-400.0,0.00016897,2]
[378558927,1754913058968,-885.25,0.00016897,2]
[378558929,1754913058977,-400.0,0.00016897,2]
[378558931,1754913058986,-400.0,0.00016897,2]
[378558933,1754913058996,-782.6,0.00016897,2]
[378558935,1754913059005,-400.0,0.00016897,2]
[378558936,1754913059015,-400.0,0.00016897,2]
[378558938,1754913059025,-321.79727134,0.00016897,2]
[378558940,1754913059035,-400.0,0.00016897,2]
[378558942,1754913059044,-400.0,0.00016897,2]
[378558944,1754913059053,-539.02,0.00016897,2]
[378558946,1754913059063,-516.56,0.00016897,2]
[378558948,1754913059072,-682.78,0.00016897,2]
[378558950,1754913059082,-767.57,0.00016897,2]
[378559016,1754913059771,-400.0,0.00016897,2]
[378559017,1754913059791,-400.0,0.00016897,2]
[378559018,1754913059814,-414.3,0.00016897,2]
[378559019,1754913059840,-316.11849775,0.00016897,2]
[378559020,1754913059862,-400.0,0.00016897,2]
[378559021,1754913059871,-400.0,0.00016897,2]
[378559022,1754913059882,-1077.9,0.00016897,2]
[378559023,1754913059891,-1847.71,0.00016897,2]
[378559024,1754913059901,-1572.94,0.00016897,2]
[378559025,1754913059910,-629.18,0.00016897,2]
[378559026,1754913059920,-400.0,0.00016897,2]
[378559027,1754913059929,-717.66,0.00016897,2]
[378559028,1754913059938,-400.0,0.00016897,2]
[378559029,1754913059948,-486.47,0.00016897,2]
[378559030,1754913059957,-400.0,0.00016897,2]
[378559031,1754913059966,-1360.56,0.00016897,2]
[378559032,1754913059975,-1924.52,0.00016897,2]
[378559033,1754913059984,-862.74,0.00016897,2]
[378559034,1754913059993,-400.0,0.00016897,2]
[378559035,1754913060003,-2103.16,0.00016897,2]
[378559036,1754913060012,-650.99,0.00016897,2]
[378559037,1754913060021,-400.0,0.00016897,2]
[378559038,1754913060030,-400.0,0.00016897,2]
[378559039,1754913060040,-535.63,0.00016897,2]
[378559040,1754913060050,-450.63,0.00016897,2]
[378559041,1754913060060,-551.93,0.00016897,2]
[378559042,1754913060071,-400.0,0.00016897,2]
[378559043,1754913060083,-400.0,0.00016897,2]
[378559044,1754913060093,-400.0,0.00016897,2]
[378559045,1754913060103,-400.0,0.00016897,2]
[378559047,1754913060113,-1110.75,0.00016897,2]
[378559048,1754913060122,-616.85,0.00016897,2]
[378559049,1754913060131,-400.0,0.00016897,2]
[378559051,1754913060141,-3665.68,0.00016897,2]
[378559052,1754913060150,-400.0,0.00016897,2]
[378559054,1754913060160,-400.0,0.00016897,2]
[378559055,1754913060169,-400.0,0.00016897,2]
[378559057,1754913060180,-538.73,0.00016897,2]
[378559060,1754913060190,-1238.34,0.00016897,2]
[378559062,1754913060201,-400.0,0.00016897,2]
[378559064,1754913060211,-400.0,0.00016897,2]
[378559066,1754913060221,-400.0,0.00016897,2]
[378559068,1754913060234,-400.0,0.00016897,2]
[378559070,1754913060245,-1103.47,0.00016897,2]
[378559072,1754913060255,-1832.23,0.00016897,2]
[378559073,1754913060265,-400.0,0.00016897,2]
[378559076,1754913060277,-400.0,0.00016897,2]
[378559078,1754913060287,-400.0,0.00016897,2]
[378559080,1754913060297,-400.0,0.00016897,2]
[378559082,1754913060307,-400.0,0.00016897,2]
[378559084,1754913060318,-400.0,0.00016897,2]
[378559086,1754913060329,-667.01,0.00016897,2]
[378559088,1754913060343,-400.0,0.00016897,2]
[378559090,1754913060353,-400.0,0.00016897,2]
[378559092,1754913060363,-400.0,0.00016897,2]
[378559094,1754913060373,-400.0,0.00016897,2]
[378559096,1754913060383,-3599.22,0.00016897,2]
[378559098,1754913060393,-400.0,0.00016897,2]
[378559100,1754913060403,-400.0,0.00016897,2]
[378559102,1754913060413,-400.0,0.00016897,2]
[378559104,1754913060423,-3965.48,0.00016897,2]
[378559106,1754913060433,-400.0,0.00016897,2]
[378559108,1754913060442,-400.0,0.00016897,2]
[378559110,1754913060452,-763.33,0.00016897,2]
[378559112,1754913060461,-400.0,0.00016897,2]
[378559114,1754913060470,-505.49,0.00016897,2]
[378559115,1754913060479,-400.0,0.00016897,2]
[378559116,1754913060488,-2315.63,0.00016897,2]
[378559117,1754913060498,-513.17,0.00016897,2]
[378559118,1754913060508,-1032.43,0.00016897,2]
[378559119,1754913060518,-2928.22,0.00016897,2]
[378559120,1754913060528,-625.35,0.00016897,2]
[378559121,1754913060537,-400.0,0.00016897,2]
[378559122,1754913060546,-1951.78,0.00016897,2]
[378559123,1754913060556,-400.0,0.00016897,2]
[378559124,1754913060565,-1219.07,0.00016897,2]
[378559125,1754913060575,-400.0,0.00016897,2]
[378559126,1754913060589,-400.0,0.00016897,2]
[378559127,1754913060599,-400.0,0.00016897,2]
[378559128,1754913060608,-400.0,0.00016897,2]
[378559129,1754913060618,-400.0,0.00016897,2]
[378559130,1754913060628,-400.0,0.00016897,2]
[378559131,1754913060637,-1039.56,0.00016897,2]
[378559132,1754913060647,-1303.97,0.00016897,2]
[378559133,1754913060656,-400.0,0.00016897,2]
[378559134,1754913060666,-400.0,0.00016897,2]
[378559135,1754913060675,-400.0,0.00016897,2]
[378559136,1754913060684,-617.95,0.00016897,2]
[378559137,1754913060693,-602.38,0.00016897,2]
[378559138,1754913060702,-408.1064177,0.00016897,2]
[378559139,1754913060712,-400.0,0.00016897,2]
[378559140,1754913060722,-400.0,0.00016897,2]
[378559141,1754913060732,-5755.72,0.00016897,2]
[378559142,1754913060741,-401.58,0.00016897,2]
[378559143,1754913060751,-400.0,0.00016897,2]
[378559144,1754913060760,-783.72,0.00016897,2]
[378559145,1754913060769,-400.0,0.00016897,2]
[378559146,1754913060779,-400.0,0.00016897,2]
[378559147,1754913060789,-400.0,0.00016897,2]
[378559148,1754913060799,-400.0,0.00016897,2]
[378559149,1754913060808,-400.0,0.00016897,2]
[378559150,1754913060818,-400.0,0.00016897,2]
[378559151,1754913060827,-400.0,0.00016897,2]
[378559152,1754913060839,-400.0,0.00016897,2]
[378559153,1754913060848,-1955.89,0.00016897,2]
[378559154,1754913060858,-400.0,0.00016897,2]
[378559155,1754913060867,-1996.46,0.00016897,2]
[378559156,1754913060877,-479.01,0.00016897,2]
[378559157,1754913060887,-1475.85,0.00016897,2]
[378559158,1754913060896,-447.09,0.00016897,2]
[378559159,1754913060906,-400.0,0.00016897,2]
[378559160,1754913060916,-400.0,0.00016897,2]
[378559161,1754913060925,-578.81,0.00016897,2]
[378559162,1754913060934,-400.0,0.00016897,2]
[378559163,1754913060945,-791.98,0.00016897,2]
[378559164,1754913060955,-2675.98,0.00016897,2]
[378559165,1754913060965,-1152.081676,0.00016897,2]
[378559166,1754913060975,-400.0,0.00016897,2]
[378559167,1754913060986,-497.831891,0.00016897,2]
[378559168,1754913060995,-400.0,0.00016897,2]
[378559169,1754913061006,-400.0,0.00016897,2]
[378559170,1754913061016,-400.0,0.00016897,2]
[378559171,1754913061026,-400.0,0.00016897,2]
[378559172,1754913061037,-400.0,0.00016897,2]
[378559173,1754913061047,-470.78,0.00016897,2]
[378559174,1754913061057,-696.81,0.00016897,2]
[378559175,1754913061068,-199.0024283,0.00016897,2]
[378559176,1754913061078,-6727.5,0.00016897,2]
[378559177,1754913061095,-400.0,0.00016897,2]
[378559178,1754913061106,-1016.93,0.00016897,2]
[378559179,1754913061117,-400.0,0.00016897,2]
[378559180,1754913061127,-400.0,0.00016897,2]
[378559181,1754913061137,-400.0,0.00016897,2]
[378559182,1754913061147,-529.01,0.00016897,2]
[378559183,1754913061157,-610.99,0.00016897,2]
[378559184,1754913061167,-521.77301111,0.00016897,2]
[378559185,1754913061178,-400.0,0.00016897,2]
[378559186,1754913061189,-400.0,0.00016897,2]
[378559187,1754913061200,-5623.33,0.00016897,2]
[378559188,1754913061211,-1089.579135,0.00016897,2]
[378559189,1754913061222,-400.0,0.00016897,2]
[378559190,1754913061234,-546.53,0.00016897,2]
[378559191,1754913061245,-400.0,0.00016897,2]
[378559192,1754913061255,-400.0,0.00016897,2]
[378559193,1754913061266,-400.0,0.00016897,2]
[378559194,1754913061277,-400.0,0.00016897,2]
[378559195,1754913061288,-562.74,0.00016897,2]
[378559196,1754913061298,-400.0,0.00016897,2]
[378559197,1754913061308,-400.0,0.00016897,2]
[378559198,1754913061319,-400.0,0.00016897,2]
[378559199,1754913061333,-790.77,0.00016897,2]
[378559200,1754913061345,-895.23,0.00016897,2]
[378559201,1754913061355,-2711.02,0.00016897,2]
[378559202,1754913061365,-400.0,0.00016897,2]
[378559203,1754913061375,-487.57,0.00016897,2]
[378559204,1754913061385,-400.0,0.00016897,2]
[378559205,1754913061395,-400.0,0.00016897,2]
[378559206,1754913061405,-1287.58,0.00016897,2]
[378559207,1754913061415,-400.0,0.00016897,2]
[378559208,1754913061424,-532.2,0.00016897,2]
[378559209,1754913061434,-709.95,0.00016897,2]
[378559210,1754913061443,-1341.71,0.00016897,2]
[378559211,1754913061453,-400.0,0.00016897,2]
[378559212,1754913061464,-7405.77,0.00016897,2]
[378559213,1754913061474,-400.0,0.00016898,2]
[378559214,1754913061483,-411.4,0.00016898,2]
[378559215,1754913061494,-1472.06,0.00016898,2]
[378559216,1754913061503,-604.88,0.00016898,2]
[378559217,1754913061515,-505.49,0.00016898,2]
[378559218,1754913061526,-879.62,0.00016898,2]
[378559219,1754913061536,-400.0,0.00016898,2]
[378559220,1754913061546,-829.69,0.00016898,2]
[378559221,1754913061556,-515.07,0.00016898,2]
[378559222,1754913061566,-659.98,0.00016898,2]
[378559223,1754913061578,-400.0,0.00016898,2]
[378559224,1754913061591,-400.0,0.00016898,2]
[378559225,1754913061602,-400.0,0.00016898,2]
[378559226,1754913061612,-771.45,0.00016898,2]
[378559227,1754913061623,-400.0,0.00016898,2]
[378559228,1754913061634,-506.28,0.00016898,2]
[378559229,1754913061645,-743.21,0.00016898,2]
[378559230,1754913061655,-942.45,0.00016898,2]
[378559231,1754913061665,-540.15,0.00016898,2]
[378559232,1754913061676,-400.0,0.00016898,2]
[378559233,1754913061685,-400.0,0.00016898,2]
[378559234,1754913061695,-523.63,0.00016898,2]
[378559235,1754913061706,-400.0,0.00016898,2]
[378559236,1754913061715,-400.0,0.00016898,2]
[378559237,1754913061725,-599.86,0.00016898,2]
[378559238,1754913061735,-408.21,0.00016898,2]
[378559239,1754913061744,-893.56,0.00016898,2]
[378559240,1754913061753,-400.0,0.00016898,2]
[378559241,1754913061763,-400.0,0.00016898,2]
[378559242,1754913061773,-400.0,0.00016898,2]
[378559243,1754913061782,-400.0,0.00016898,2]
[378559244,1754913061792,-400.0,0.00016898,2]
[378559245,1754913061801,-400.0,0.00016898,2]
[378559246,1754913061811,-759.92,0.00016898,2]
[378559247,1754913061820,-400.0,0.00016898,2]
[378559248,1754913061832,-464.83,0.00016898,2]
[378559249,1754913061841,-400.0,0.00016898,2]
[378559250,1754913061851,-203.01370954,0.00016898,2]
[378559251,1754913061860,-400.0,0.00016898,2]
[378559252,1754913061870,-400.0,0.00016898,2]
[378559253,1754913061879,-400.0,0.00016898,2]
[378559254,1754913061888,-862.15,0.00016898,2]
[378559255,1754913061898,-400.0,0.00016898,2]
[378559256,1754913061908,-817.78,0.00016898,2]
[378559257,1754913061922,-400.0,0.00016898,2]
[378559258,1754913061931,-400.0,0.00016898,2]
[378559259,1754913061941,-400.0,0.00016898,2]
[378559260,1754913061950,-400.0,0.00016898,2]
[378559261,1754913061960,-400.0,0.00016898,2]
[378559262,1754913061970,-400.0,0.00016898,2]
[378559263,1754913061980,-445.95,0.00016898,2]
[378559264,1754913061989,-479.75,0.00016898,2]
[378559265,1754913062000,-400.0,0.00016898,2]
[378559266,1754913062010,-403.65927506,0.00016898,2]
[378559267,1754913062019,-400.0,0.00016898,2]
[378559268,1754913062029,-681.68,0.00016898,2]
[378559269,1754913062038,-419.27,0.00016898,2]
[378559270,1754913062047,-400.0,0.00016898,2]
[378559271,1754913062057,-400.0,0.00016898,2]
[378559272,1754913062067,-400.0,0.00016898,2]
[378559273,1754913062076,-400.0,0.00016898,2]
[378559274,1754913062087,-1171.58,0.00016898,2]
[378559275,1754913062096,-400.0,0.00016898,2]
[378559276,1754913062106,-400.0,0.00016898,2]
[378559277,1754913062116,-652.15,0.00016898,2]
[378559278,1754913062125,-400.0,0.00016898,2]
[378559279,1754913062135,-400.0,0.00016898,2]
[378559280,1754913062145,-895.92,0.00016898,2]
[378559281,1754913062154,-865.05,0.00016898,2]
[378559282,1754913062164,-400.0,0.00016898,2]
[378559283,1754913062174,-620.65,0.00016898,2]
[378559284,1754913062184,-401.39,0.00016898,2]
[378559285,1754913062194,-400.0,0.00016898,2]
[378559286,1754913062203,-400.0,0.00016898,2]
[378559287,1754913062212,-1011.29,0.00016898,2]
[378559288,1754913062222,-475.4,0.00016898,2]
[378559289,1754913062232,-400.0,0.00016898,2]
[378559290,1754913062244,-444.01,0.00016898,2]
[378559291,1754913062254,-1023.09,0.00016898,2]
[378559292,1754913062264,-695.97,0.00016898,2]
[378559293,1754913062275,-1133.88,0.00016898,2]
[378559294,1754913062285,-400.0,0.00016898,2]
[378559295,1754913062295,-694.53,0.00016898,2]
[378559296,1754913062304,-400.0,0.00016898,2]
[378559297,1754913062314,-400.0,0.00016898,2]
[378559298,1754913062324,-758.91,0.00016898,2]
[378559299,1754913062336,-422.25,0.00016898,2]
[378559300,1754913062346,-400.0,0.00016898,2]
[378559301,1754913062355,-890.17,0.00016898,2]
[378559302,1754913062365,-860.13,0.00016898,2]
[378559303,1754913062374,-400.0,0.00016898,2]
[378559304,1754913062384,-400.0,0.00016898,2]
[378559305,1754913062394,-470.87,0.00016898,2]
[378559306,1754913062403,-1394.05,0.00016898,2]
[378559307,1754913062413,-520.0,0.00016898,2]
[378559308,1754913062423,-400.0,0.00016898,2]
[378559309,1754913062433,-400.0,0.00016898,2]
[378559310,1754913062442,-526.76483613,0.00016898,2]
[378559311,1754913062452,-400.0,0.00016898,2]
[378559312,1754913062462,-910.03,0.00016898,2]
[378559313,1754913062471,-400.0,0.00016898,2]
[378559314,1754913062481,-400.0,0.00016898,2]
[378559315,1754913062491,-962.55,0.00016898,2]
[378559316,1754913062501,-400.0,0.00016898,2]
[378559317,1754913062511,-1368.56,0.00016898,2]
[378559318,1754913062521,-743.88,0.00016898,2]
[378559319,1754913062531,-1031.13,0.00016898,2]
[378559320,1754913062541,-400.0,0.00016898,2]
[378559321,1754913062551,-400.0,0.00016898,2]
[378559322,1754913062561,-409.76,0.00016898,2]
[378559323,1754913062571,-540.06,0.00016898,2]
[378559324,1754913062583,-400.0,0.00016898,2]
[378559325,1754913062593,-845.56,0.00016898,2]
[378559326,1754913062603,-400.0,0.00016898,2]
[378559327,1754913062613,-400.0,0.00016898,2]
[378559328,1754913062623,-308.42060474,0.00016898,2]
[378559329,1754913062633,-400.0,0.00016898,2]
[378559330,1754913062643,-792.64,0.00016898,2]
[378559331,1754913062652,-400.0,0.00016898,2]
[378559332,1754913062662,-400.0,0.00016898,2]
[378559333,1754913062672,-402.49694499,0.00016898,2]
[378559334,1754913062681,-1762.08,0.00016898,2]
[378559335,1754913062691,-493.1617635,0.00016898,2]
[378559336,1754913062701,-234.82481721,0.00016898,2]
[378559337,1754913062711,-593.38,0.00016898,2]
[378559338,1754913062720,-400.0,0.00016898,2]
[378559339,1754913062730,-597.49,0.00016898,2]
[378559340,1754913062740,-400.0,0.00016898,2]
[378559341,1754913062749,-400.0,0.00016898,2]
[378559342,1754913062759,-400.0,0.00016898,2]
[378559343,1754913062769,-506.13,0.00016898,2]
[378559344,1754913062779,-1629.14,0.00016898,2]
[378559345,1754913062790,-400.0,0.00016898,2]
[378559346,1754913062800,-400.0,0.00016898,2]
[378559347,1754913062810,-993.68,0.00016898,2]
[378559348,1754913062820,-501.83486115,0.00016898,2]
[378559349,1754913062833,-376.02146634,0.00016898,2]
[378559350,1754913062846,-400.0,0.00016898,2]
[378559351,1754913062856,-400.0,0.00016898,2]
[378559352,1754913062867,-400.0,0.00016898,2]
[378559353,1754913062878,-513.33,0.00016898,2]
[378559354,1754913062890,-400.0,0.00016898,2]
[378559355,1754913062901,-400.0,0.00016898,2]
[378559356,1754913062912,-400.0,0.00016898,2]
[378559357,1754913062923,-400.0,0.00016898,2]
[378559358,1754913062933,-1141.73,0.00016898,2]
[378559359,1754913062944,-401.2032314,0.00016898,2]
[378559360,1754913062953,-400.0,0.00016898,2]
[378559361,1754913062963,-670.5,0.00016898,2]
[378559362,1754913062973,-423.65,0.00016898,2]
[378559363,1754913062983,-400.0,0.00016898,2]
[378559364,1754913062993,-892.5,0.00016898,2]
[378559365,1754913063003,-400.0,0.00016898,2]
[378559366,1754913063013,-400.0,0.00016898,2]
[378559367,1754913063024,-253.19189672,0.00016898,2]
[378559368,1754913063035,-400.0,0.00016898,2]
[378559369,1754913063045,-400.0,0.00016898,2]
[378559370,1754913063057,-400.0,0.00016898,2]
[378559371,1754913063068,-400.0,0.00016898,2]
[378559372,1754913063086,-400.0,0.00016898,2]
[378559373,1754913063097,-510.86099253,0.00016898,2]
[378559374,1754913063108,-908.52,0.00016898,2]
[378559375,1754913063119,-965.86,0.00016898,2]
[378559376,1754913063130,-670.06,0.00016898,2]
[378559377,1754913063140,-400.0,0.00016898,2]
[378559378,1754913063151,-400.0,0.00016898,2]
[378559379,1754913063162,-400.0,0.00016898,2]
[378559380,1754913063173,-400.0,0.00016898,2]
[378559381,1754913063422,-400.0,0.00016898,2]
[378559382,1754913063442,-874.48,0.00016898,2]
[378559383,1754913063452,-979.39,0.00016898,2]
[378559384,1754913063462,-1333.91,0.00016898,2]
[378559385,1754913063471,-400.0,0.00016898,2]
[378559386,1754913063481,-400.0,0.00016898,2]
[378559387,1754913063491,-400.0,0.00016898,2]
[378559388,1754913063500,-905.1,0.00016898,2]
[378559389,1754913063510,-500.0,0.00016898,2]
[378559390,1754913063520,-400.0,0.00016898,2]
[378559391,1754913063531,-894.54,0.00016898,2]
[378559392,1754913063542,-400.0,0.00016898,2]
[378559393,1754913063553,-676.94,0.00016898,2]
[378559394,1754913063564,-400.0,0.00016898,2]
[378559395,1754913063575,-400.0,0.00016898,2]
[378559396,1754913063588,-400.0,0.00016898,2]
[378559397,1754913063599,-542.48,0.00016898,2]
[378559398,1754913063609,-400.0,0.00016898,2]
[378559399,1754913063619,-508.79,0.00016898,2]
[378559400,1754913063630,-999.87,0.00016898,2]
[378559401,1754913063640,-3049.11,0.00016898,2]
[378559402,1754913063650,-400.0,0.00016898,2]
[378559403,1754913063660,-1358.48,0.00016898,2]
[378559404,1754913063670,-400.0,0.00016898,2]
[378559405,1754913063680,-400.0,0.00016898,2]
[378559406,1754913063691,-400.0,0.00016898,2]
[378559407,1754913063701,-400.0,0.00016898,2]
[378559408,1754913063711,-308.62,0.00016898,2]
[378559409,1754913063722,-400.0,0.00016898,2]
[378559410,1754913063732,-588.01,0.00016898,2]
[378559411,1754913063742,-400.0,0.00016898,2]
[378559412,1754913063755,-400.0,0.00016898,2]
[378559413,1754913063776,-400.0,0.00016898,2]
[378559414,1754913063787,-917.7,0.00016898,2]
[378559415,1754913063798,-575.14,0.00016898,2]
[378559416,1754913063808,-534.7,0.00016898,2]
[378559417,1754913063818,-500.0,0.00016898,2]
[378559418,1754913063827,-500.0,0.00016898,2]
[378559419,1754913063840,-400.0,0.00016898,2]
[378559420,1754913063850,-400.0,0.00016898,2]
[378559421,1754913063859,-1119.85,0.00016898,2]
[378559422,1754913063870,-400.0,0.00016898,2]
[378559423,1754913063880,-464.07801844,0.00016898,2]
[378559424,1754913063889,-1484.62,0.00016898,2]
[378559425,1754913063900,-1423.31,0.00016898,2]
[378559426,1754913063910,-203.59160479,0.00016898,2]
[378559427,1754913063920,-1105.92,0.00016898,2]
[378559428,1754913063930,-778.81,0.00016898,2]
[378559429,1754913063940,-400.0,0.00016898,2]
[378559430,1754913063950,-400.0,0.00016898,2]
[378559431,1754913063960,-401.07828787,0.00016898,2]
[378559432,1754913063969,-513.21,0.00016898,2]
[378559433,1754913063979,-1184.91,0.00016898,2]
[378559434,1754913063988,-666.0,0.00016898,2]
[378559435,1754913063998,-400.0,0.00016898,2]
[378559436,1754913064008,-446.8,0.00016898,2]
[378559437,1754913064017,-401.13546377,0.00016898,2]
[378559438,1754913064027,-400.0,0.00016898,2]
[378559439,1754913064037,-400.0,0.00016898,2]
[378559440,1754913064047,-2031.02,0.00016898,2]